[Event "Early-Titled-Tuesday-Blitz-April-02-2024"]
[Site "Chess.com"]
[Date "2024.04.02"]
[Round "3"]
[White "levallem"]
[Black "zajka-molotok"]
[Result "1-0"]
[WhiteElo "2333"]
[BlackElo "2540"]
[TimeControl "180+1"]
[EndTime "8:28:18 PDT"]
[Termination "levallem won on time"]

1. d4 {[%clk 0:03:00.9]} 1... g6 {[%clk 0:02:59.7]} 2. Nf3 {[%clk 0:03:00.3]}
2... Bg7 {[%clk 0:02:59.4]} 3. e3 {[%clk 0:03:01.2]} 3... d6 {[%clk 0:02:57.7]}
4. Be2 {[%clk 0:03:01.6]} 4... e5 {[%clk 0:02:57.1]} 5. O-O {[%clk 0:03:02.5]}
5... e4 {[%clk 0:02:56.8]} 6. Nfd2 {[%clk 0:03:02.2]} 6... f5 {[%clk 0:02:56.8]}
7. c4 {[%clk 0:03:02.4]} 7... Nf6 {[%clk 0:02:56.7]} 8. b4 {[%clk 0:03:02.3]}
8... O-O {[%clk 0:02:53.7]} 9. Bb2 {[%clk 0:03:02.2]} 9... Nc6 {[%clk
0:02:51.8]} 10. Qb3 {[%clk 0:03:00.9]} 10... Kh8 {[%clk 0:02:51]} 11. a4 {[%clk
0:02:59.8]} 11... f4 {[%clk 0:02:45]} 12. exf4 {[%clk 0:02:54]} 12... Ng4 {[%clk
0:02:42.3]} 13. d5 {[%clk 0:02:40.5]} 13... Nd4 {[%clk 0:02:29.3]} 14. Bxd4
{[%clk 0:02:22.8]} 14... Bxd4 {[%clk 0:02:30.2]} 15. Ra3 {[%clk 0:02:19.2]}
15... e3 {[%clk 0:02:21.4]} 16. Bxg4 {[%clk 0:01:59.2]} 16... exf2+ {[%clk
0:02:05.3]} 17. Kh1 {[%clk 0:01:57.4]} 17... Bxg4 {[%clk 0:02:06]} 18. Qg3
{[%clk 0:01:51.4]} 18... Be2 {[%clk 0:02:00]} 19. Rxf2 {[%clk 0:01:48.6]} 19...
Bxf2 {[%clk 0:01:59.9]} 20. Qxf2 {[%clk 0:01:49.5]} 20... Qe7 {[%clk 0:01:54]}
21. Re3 {[%clk 0:01:46.9]} 21... Qf6 {[%clk 0:01:42.2]} 22. Rxe2 {[%clk
0:01:40.5]} 22... Qxf4 {[%clk 0:01:37.8]} 23. Qxf4 {[%clk 0:01:39.1]} 23... Rxf4
{[%clk 0:01:38.7]} 24. g3 {[%clk 0:01:37.3]} 24... Rd4 {[%clk 0:01:29.7]} 25.
Nc3 {[%clk 0:01:31.6]} 25... Rd3 {[%clk 0:01:26]} 26. Nb5 {[%clk 0:01:29.9]}
26... c6 {[%clk 0:01:22.2]} 27. Nxd6 {[%clk 0:01:16.7]} 27... cxd5 {[%clk
0:01:20.7]} 28. Nxb7 {[%clk 0:00:58.5]} 28... dxc4 {[%clk 0:01:16.3]} 29. Nxc4
{[%clk 0:00:55.1]} 29... Rf8 {[%clk 0:01:03.2]} 30. Nbd6 {[%clk 0:00:43.5]}
30... Rd4 {[%clk 0:00:54]} 31. Kg2 {[%clk 0:00:40.5]} 31... a6 {[%clk
0:00:50.7]} 32. b5 {[%clk 0:00:40.2]} 32... a5 {[%clk 0:00:43.9]} 33. b6 {[%clk
0:00:37.8]} 33... Rb8 {[%clk 0:00:37.7]} 34. b7 {[%clk 0:00:35.5]} 34... Kg7
{[%clk 0:00:37.8]} 35. Re7+ {[%clk 0:00:31.8]} 35... Kf6 {[%clk 0:00:34]} 36.
Rc7 {[%clk 0:00:30.8]} 36... Rd1 {[%clk 0:00:15.4]} 37. Rc8 {[%clk 0:00:29.1]}
37... Rxb7 {[%clk 0:00:15.3]} 38. Nxb7 {[%clk 0:00:28.5]} 38... Ra1 {[%clk
0:00:16.2]} 39. Nc5 {[%clk 0:00:27.3]} 39... h5 {[%clk 0:00:13.2]} 40. Nxa5
{[%clk 0:00:26.9]} 40... h4 {[%clk 0:00:13.1]} 41. Kh3 {[%clk 0:00:24.7]} 41...
hxg3 {[%clk 0:00:12.8]} 42. hxg3 {[%clk 0:00:25.6]} 42... g5 {[%clk 0:00:13.2]}
43. Kg4 {[%clk 0:00:25.3]} 43... Ke5 {[%clk 0:00:11.2]} 44. Nab3 {[%clk
0:00:22.1]} 44... Ra3 {[%clk 0:00:10]} 45. Rg8 {[%clk 0:00:21.6]} 45... Kd5
{[%clk 0:00:09.3]} 46. Rxg5+ {[%clk 0:00:21.6]} 46... Kc4 {[%clk 0:00:10.2]} 47.
Kh5 {[%clk 0:00:21.7]} 47... Kc3 {[%clk 0:00:09.3]} 48. g4 {[%clk 0:00:22]}
48... Ra2 {[%clk 0:00:09.7]} 49. Rf5 {[%clk 0:00:21.2]} 49... Kc4 {[%clk
0:00:07.1]} 50. Kg6 {[%clk 0:00:21.2]} 50... Re2 {[%clk 0:00:03.4]} 51. g5
{[%clk 0:00:21.4]} 1-0

[Event "Early-Titled-Tuesday-Blitz-April-02-2024"]
[Site "Chess.com"]
[Date "2024.04.02"]
[Round "3"]
[White "GGuseinov"]
[Black "karinachess1"]
[Result "0-1"]
[WhiteElo "2900"]
[BlackElo "2614"]
[TimeControl "180+1"]
[EndTime "8:28:19 PDT"]
[Termination "karinachess1 won on time"]

1. e4 {[%clk 0:03:00.9]} 1... e5 {[%clk 0:02:59.5]} 2. Nf3 {[%clk 0:02:56.6]}
2... Nc6 {[%clk 0:02:59.5]} 3. d4 {[%clk 0:02:56.9]} 3... exd4 {[%clk
0:02:59.6]} 4. Bc4 {[%clk 0:02:57.2]} 4... Nf6 {[%clk 0:02:59.3]} 5. e5 {[%clk
0:02:57.4]} 5... d5 {[%clk 0:02:59.2]} 6. Bb5 {[%clk 0:02:57.5]} 6... Ne4 {[%clk
0:02:59.7]} 7. Nxd4 {[%clk 0:02:57.8]} 7... Bd7 {[%clk 0:03:00.3]} 8. Bxc6
{[%clk 0:02:57.5]} 8... bxc6 {[%clk 0:03:00.2]} 9. O-O {[%clk 0:02:58.4]} 9...
Bc5 {[%clk 0:02:58.6]} 10. f3 {[%clk 0:02:58.1]} 10... Ng5 {[%clk 0:02:58.5]}
11. f4 {[%clk 0:02:58.3]} 11... Ne4 {[%clk 0:02:58.9]} 12. Be3 {[%clk
0:02:57.1]} 12... O-O {[%clk 0:02:59.1]} 13. Nd2 {[%clk 0:02:54.4]} 13... f6
{[%clk 0:02:59.3]} 14. Nxe4 {[%clk 0:02:45.4]} 14... dxe4 {[%clk 0:03:00.2]} 15.
Qe2 {[%clk 0:02:36.9]} 15... Bg4 {[%clk 0:02:51.2]} 16. Qd2 {[%clk 0:02:15.1]}
16... fxe5 {[%clk 0:02:42.4]} 17. fxe5 {[%clk 0:02:12.4]} 17... Qd5 {[%clk
0:02:41.6]} 18. h3 {[%clk 0:01:55.2]} 18... Bd7 {[%clk 0:02:36.3]} 19. c3 {[%clk
0:01:36.9]} 19... Qxe5 {[%clk 0:02:29.3]} 20. Bf4 {[%clk 0:01:31]} 20... Qe7
{[%clk 0:02:22]} 21. Qe3 {[%clk 0:01:24.7]} 21... Bd6 {[%clk 0:02:05.8]} 22.
Rae1 {[%clk 0:01:23.5]} 22... Rae8 {[%clk 0:02:02.6]} 23. Nb3 {[%clk 0:01:14.4]}
23... c5 {[%clk 0:01:52.9]} 24. Nd2 {[%clk 0:01:14.3]} 24... Bb5 {[%clk
0:01:45.9]} 25. Rf2 {[%clk 0:00:58]} 25... Bd3 {[%clk 0:01:25.6]} 26. Nf1 {[%clk
0:00:43.8]} 26... c4 {[%clk 0:01:22.4]} 27. Bxd6 {[%clk 0:00:41.2]} 27... cxd6
{[%clk 0:01:23.3]} 28. Ng3 {[%clk 0:00:38.3]} 28... Rxf2 {[%clk 0:01:15.7]} 29.
Kxf2 {[%clk 0:00:39]} 29... Qe5 {[%clk 0:01:06.8]} 30. Kg1 {[%clk 0:00:35.3]}
30... a5 {[%clk 0:01:01.5]} 31. Ne2 {[%clk 0:00:34.7]} 31... Rb8 {[%clk
0:00:49.3]} 32. Qc1 {[%clk 0:00:19.1]} 32... Qb5 {[%clk 0:00:37.3]} 33. Nd4
{[%clk 0:00:17.3]} 33... Qxb2 {[%clk 0:00:36.1]} 34. Qg5 {[%clk 0:00:18]} 34...
Qb7 {[%clk 0:00:30.2]} 35. Nf5 {[%clk 0:00:15.4]} 35... Qd7 {[%clk 0:00:24.3]}
36. Re3 {[%clk 0:00:08.4]} 36... Rf8 {[%clk 0:00:20.1]} 37. Ne7+ {[%clk
0:00:08.8]} 37... Kh8 {[%clk 0:00:20.2]} 38. Rg3 {[%clk 0:00:08.4]} 38... Rf7
{[%clk 0:00:18.3]} 39. Nd5 {[%clk 0:00:07.1]} 39... h6 {[%clk 0:00:10.6]} 40.
Qe3 {[%clk 0:00:03.9]} 40... Kh7 {[%clk 0:00:09.8]} 41. Kh2 {[%clk 0:00:03.8]}
41... Qf5 {[%clk 0:00:09.9]} 42. Nb6 {[%clk 0:00:01.8]} 42... Qe5 {[%clk
0:00:09]} 43. Na4 {[%clk 0:00:01]} 43... h5 {[%clk 0:00:08.9]} 0-1

[Event "Early-Titled-Tuesday-Blitz-April-02-2024"]
[Site "Chess.com"]
[Date "2024.04.02"]
[Round "3"]
[White "Evandro_Barbosa"]
[Black "GOGIEFF"]
[Result "0-1"]
[WhiteElo "2737"]
[BlackElo "3013"]
[TimeControl "180+1"]
[EndTime "8:28:20 PDT"]
[Termination "GOGIEFF won on time"]

1. e4 {[%clk 0:03:00.9]} 1... c5 {[%clk 0:02:59.6]} 2. Nf3 {[%clk 0:02:59.9]}
2... d6 {[%clk 0:03:00.1]} 3. Bb5+ {[%clk 0:02:59.7]} 3... Nd7 {[%clk
0:03:00.4]} 4. d4 {[%clk 0:02:59.3]} 4... cxd4 {[%clk 0:03:00.2]} 5. Qxd4 {[%clk
0:02:59.6]} 5... a6 {[%clk 0:03:00.7]} 6. Bxd7+ {[%clk 0:02:59.4]} 6... Bxd7
{[%clk 0:03:01.1]} 7. O-O {[%clk 0:02:59.6]} 7... Rc8 {[%clk 0:03:00.2]} 8. c4
{[%clk 0:02:59.3]} 8... e5 {[%clk 0:03:00]} 9. Qd3 {[%clk 0:02:58.8]} 9... b5
{[%clk 0:03:00.3]} 10. Na3 {[%clk 0:02:55.3]} 10... Qb6 {[%clk 0:02:57.5]} 11.
b3 {[%clk 0:02:47.9]} 11... Nf6 {[%clk 0:02:54.5]} 12. Bg5 {[%clk 0:02:46.8]}
12... Be7 {[%clk 0:02:39.1]} 13. Bxf6 {[%clk 0:02:45.5]} 13... Bxf6 {[%clk
0:02:36.2]} 14. Rfd1 {[%clk 0:02:40.1]} 14... Ke7 {[%clk 0:01:51.4]} 15. cxb5
{[%clk 0:02:36.2]} 15... axb5 {[%clk 0:01:50.6]} 16. Nc2 {[%clk 0:02:33.7]}
16... Be6 {[%clk 0:01:43.2]} 17. Nb4 {[%clk 0:02:25.7]} 17... Rc5 {[%clk
0:01:36.6]} 18. Nd2 {[%clk 0:02:00.4]} 18... Rhc8 {[%clk 0:01:27.6]} 19. Nf1
{[%clk 0:01:57.1]} 19... Rc3 {[%clk 0:01:19]} 20. Nd5+ {[%clk 0:01:50.9]} 20...
Bxd5 {[%clk 0:01:15.9]} 21. Qxd5 {[%clk 0:01:51.8]} 21... Bg5 {[%clk 0:01:15.2]}
22. Rd3 {[%clk 0:01:18.4]} 22... R8c5 {[%clk 0:01:06]} 23. Rxc3 {[%clk
0:01:13.6]} 23... Rxd5 {[%clk 0:01:06.2]} 24. exd5 {[%clk 0:01:13.3]} 24... Qd4
{[%clk 0:01:06.5]} 25. Rc7+ {[%clk 0:01:13.2]} 25... Kf6 {[%clk 0:01:06.5]} 26.
Re1 {[%clk 0:01:05.5]} 26... Qxd5 {[%clk 0:01:03.4]} 27. Ne3 {[%clk 0:00:59.9]}
27... Bxe3 {[%clk 0:01:02.8]} 28. fxe3 {[%clk 0:01:00]} 28... Ke6 {[%clk
0:00:55.3]} 29. e4 {[%clk 0:00:54.8]} 29... Qd4+ {[%clk 0:00:53.9]} 30. Kh1
{[%clk 0:00:54.7]} 30... Qf2 {[%clk 0:00:52.5]} 31. Rd1 {[%clk 0:00:46.4]} 31...
Qe2 {[%clk 0:00:48.7]} 32. Rcc1 {[%clk 0:00:38.2]} 32... Qxe4 {[%clk 0:00:48.7]}
33. Re1 {[%clk 0:00:29.1]} 33... Qa8 {[%clk 0:00:44.4]} 34. a4 {[%clk
0:00:26.5]} 34... bxa4 {[%clk 0:00:43.9]} 35. Ra1 {[%clk 0:00:26.7]} 35... a3
{[%clk 0:00:44.3]} 36. Reb1 {[%clk 0:00:26.2]} 36... h5 {[%clk 0:00:40.4]} 37.
b4 {[%clk 0:00:26.2]} 37... h4 {[%clk 0:00:40.9]} 38. h3 {[%clk 0:00:26.6]}
38... g5 {[%clk 0:00:41.4]} 39. b5 {[%clk 0:00:20.4]} 39... g4 {[%clk
0:00:41.6]} 40. b6 {[%clk 0:00:20.7]} 40... Qb7 {[%clk 0:00:34.1]} 41. Rxa3
{[%clk 0:00:20.5]} 41... f5 {[%clk 0:00:26.1]} 42. Kg1 {[%clk 0:00:19.5]} 42...
Kf6 {[%clk 0:00:19.4]} 43. Ra7 {[%clk 0:00:18.2]} 43... Qe4 {[%clk 0:00:19.4]}
44. Raa1 {[%clk 0:00:16.7]} 44... gxh3 {[%clk 0:00:19.8]} 45. gxh3 {[%clk
0:00:16.4]} 45... Qe3+ {[%clk 0:00:20.4]} 46. Kf1 {[%clk 0:00:16.4]} 46... Qxh3+
{[%clk 0:00:20.1]} 47. Kg1 {[%clk 0:00:17]} 47... Qg3+ {[%clk 0:00:20.5]} 48.
Kf1 {[%clk 0:00:17.5]} 48... h3 {[%clk 0:00:20.5]} 49. Ra2 {[%clk 0:00:11.9]}
49... h2 {[%clk 0:00:20]} 50. Rxh2 {[%clk 0:00:01.9]} 50... Qxh2 {[%clk
0:00:20]} 0-1

[Event "Early-Titled-Tuesday-Blitz-April-02-2024"]
[Site "Chess.com"]
[Date "2024.04.02"]
[Round "3"]
[White "Orest_Vovk"]
[Black "cakeuvdort"]
[Result "1-0"]
[WhiteElo "2582"]
[BlackElo "2295"]
[TimeControl "180+1"]
[EndTime "8:28:20 PDT"]
[Termination "Orest_Vovk won on time"]

1. h4 {[%clk 0:02:46.5]} 1... e5 {[%clk 0:02:58.7]} 2. h5 {[%clk 0:02:44.2]}
2... d5 {[%clk 0:02:56.5]} 3. h6 {[%clk 0:02:43.7]} 3... Nxh6 {[%clk 0:02:56.2]}
4. d4 {[%clk 0:02:41.7]} 4... exd4 {[%clk 0:02:52.6]} 5. Bxh6 {[%clk 0:02:36.8]}
5... gxh6 {[%clk 0:02:52.4]} 6. Qxd4 {[%clk 0:02:36.1]} 6... Rg8 {[%clk
0:02:52.8]} 7. Nc3 {[%clk 0:02:34.8]} 7... Bg7 {[%clk 0:02:44.1]} 8. Qf4 {[%clk
0:02:33]} 8... c6 {[%clk 0:02:15.3]} 9. O-O-O {[%clk 0:02:29]} 9... Bxc3 {[%clk
0:02:10.3]} 10. bxc3 {[%clk 0:02:27.9]} 10... Qg5 {[%clk 0:02:10.7]} 11. Qxg5
{[%clk 0:02:05.5]} 11... hxg5 {[%clk 0:02:11.6]} 12. Rxh7 {[%clk 0:02:05.1]}
12... Be6 {[%clk 0:02:12.1]} 13. Nf3 {[%clk 0:02:01.6]} 13... Nd7 {[%clk
0:02:11.6]} 14. e3 {[%clk 0:01:56.4]} 14... O-O-O {[%clk 0:01:48.8]} 15. Nd4
{[%clk 0:01:43.7]} 15... Rh8 {[%clk 0:01:41.3]} 16. Rg7 {[%clk 0:01:38.4]} 16...
Rdg8 {[%clk 0:01:40.4]} 17. Rxg8+ {[%clk 0:01:38.5]} 17... Rxg8 {[%clk
0:01:41.3]} 18. c4 {[%clk 0:01:38.7]} 18... Ne5 {[%clk 0:01:25.5]} 19. Nxe6
{[%clk 0:01:32.2]} 19... fxe6 {[%clk 0:01:25.2]} 20. cxd5 {[%clk 0:01:32.4]}
20... exd5 {[%clk 0:01:17.7]} 21. Bd3 {[%clk 0:01:30.6]} 21... Rf8 {[%clk
0:01:09.5]} 22. f3 {[%clk 0:01:29.5]} 22... Kc7 {[%clk 0:01:00.9]} 23. Rh1
{[%clk 0:01:28.3]} 23... c5 {[%clk 0:00:52.5]} 24. Rh7+ {[%clk 0:01:26.2]} 24...
Kb6 {[%clk 0:00:46.8]} 25. Kd2 {[%clk 0:01:21.4]} 25... c4 {[%clk 0:00:36.3]}
26. Be2 {[%clk 0:01:19.5]} 26... Rf7 {[%clk 0:00:17.8]} 27. Rh5 {[%clk
0:00:59.5]} 27... Rf5 {[%clk 0:00:10.9]} 28. f4 {[%clk 0:00:49.8]} 28... Nf7
{[%clk 0:00:02.9]} 29. g4 {[%clk 0:00:46.3]} 29... Rf6 {[%clk 0:00:03.2]} 30. f5
{[%clk 0:00:42.1]} 30... Kc5 {[%clk 0:00:01.6]} 31. c3 {[%clk 0:00:40.4]} 31...
b5 {[%clk 0:00:01.6]} 32. Rh7 {[%clk 0:00:31]} 32... Nd6 {[%clk 0:00:02.5]} 33.
Bf3 {[%clk 0:00:28.7]} 33... a5 {[%clk 0:00:02.5]} 34. Rc7+ {[%clk 0:00:26.6]}
34... Kb6 {[%clk 0:00:02.8]} 35. Rg7 {[%clk 0:00:26.3]} 35... Kc5 {[%clk
0:00:03.2]} 36. Rg6 {[%clk 0:00:20.2]} 36... Rxg6 {[%clk 0:00:03.1]} 37. fxg6
{[%clk 0:00:20.5]} 37... Ne8 {[%clk 0:00:03.7]} 38. e4 {[%clk 0:00:20.5]} 38...
Nf6 {[%clk 0:00:03.1]} 39. exd5 {[%clk 0:00:17.3]} 39... b4 {[%clk 0:00:02.9]}
40. cxb4+ {[%clk 0:00:16.2]} 40... axb4 {[%clk 0:00:03.8]} 41. g7 {[%clk
0:00:16.4]} 41... Kd4 {[%clk 0:00:03.7]} 42. d6 {[%clk 0:00:14.9]} 42... Ke5
{[%clk 0:00:02.5]} 43. d7 {[%clk 0:00:13.8]} 43... c3+ {[%clk 0:00:01.8]} 44.
Kc2 {[%clk 0:00:13.2]} 1-0

[Event "Early-Titled-Tuesday-Blitz-April-02-2024"]
[Site "Chess.com"]
[Date "2024.04.02"]
[Round "3"]
[White "pfalcon1949"]
[Black "Bob_2004"]
[Result "0-1"]
[WhiteElo "1945"]
[BlackElo "2352"]
[TimeControl "180+1"]
[EndTime "8:28:21 PDT"]
[Termination "Bob_2004 won by resignation"]

1. e4 {[%clk 0:02:49.3]} 1... c5 {[%clk 0:02:58.9]} 2. Nf3 {[%clk 0:02:48.8]}
2... g6 {[%clk 0:02:59.4]} 3. d4 {[%clk 0:02:48.9]} 3... cxd4 {[%clk 0:03:00.3]}
4. Nxd4 {[%clk 0:02:48.7]} 4... Nc6 {[%clk 0:03:00.6]} 5. c4 {[%clk 0:02:48.1]}
5... Nf6 {[%clk 0:02:59.5]} 6. Nc3 {[%clk 0:02:46.2]} 6... Nxd4 {[%clk
0:02:59.9]} 7. Qxd4 {[%clk 0:02:44.6]} 7... d6 {[%clk 0:03:00.8]} 8. Be3 {[%clk
0:02:43]} 8... Bg7 {[%clk 0:03:01.1]} 9. Qd2 {[%clk 0:02:35.8]} 9... O-O {[%clk
0:03:01.3]} 10. Be2 {[%clk 0:02:34.6]} 10... a5 {[%clk 0:03:00.7]} 11. O-O
{[%clk 0:02:33.8]} 11... a4 {[%clk 0:03:00]} 12. f3 {[%clk 0:02:33]} 12... Be6
{[%clk 0:02:59.7]} 13. b3 {[%clk 0:02:31.7]} 13... axb3 {[%clk 0:02:08.8]} 14.
axb3 {[%clk 0:02:29.6]} 14... Nd7 {[%clk 0:02:06]} 15. Rxa8 {[%clk 0:02:25.3]}
15... Qxa8 {[%clk 0:02:05.3]} 16. Bh6 {[%clk 0:02:18.5]} 16... Qa5 {[%clk
0:01:52.8]} 17. Bxg7 {[%clk 0:02:16.4]} 17... Kxg7 {[%clk 0:01:51.7]} 18. Rd1
{[%clk 0:02:17.3]} 18... Ra8 {[%clk 0:01:49.7]} 19. Nd5 {[%clk 0:02:11.4]} 19...
Bxd5 {[%clk 0:01:43.3]} 20. exd5 {[%clk 0:02:05.9]} 20... Qxd2 {[%clk
0:01:39.3]} 21. Rxd2 {[%clk 0:02:05.2]} 21... Ra3 {[%clk 0:01:39.4]} 22. Bd1
{[%clk 0:02:03.3]} 22... Ra1 {[%clk 0:01:31.5]} 23. Kf2 {[%clk 0:02:01.6]} 23...
Kf6 {[%clk 0:01:25.2]} 24. Be2 {[%clk 0:02:01.5]} 24... Rb1 {[%clk 0:01:20.9]}
25. Bd1 {[%clk 0:01:55.6]} 25... Nc5 {[%clk 0:01:17.5]} 26. g3 {[%clk
0:01:35.9]} 26... Nxb3 {[%clk 0:01:14.3]} 27. Bxb3 {[%clk 0:01:27]} 27... Rxb3
{[%clk 0:01:14.1]} 28. Rc2 {[%clk 0:01:26.3]} 28... b6 {[%clk 0:01:02.6]} 29. h4
{[%clk 0:01:25]} 29... h5 {[%clk 0:01:01.3]} 30. g4 {[%clk 0:01:23]} 30... hxg4
{[%clk 0:00:55.2]} 31. fxg4 {[%clk 0:01:22.9]} 31... Rh3 {[%clk 0:00:55.9]} 32.
g5+ {[%clk 0:01:16]} 32... Kf5 {[%clk 0:00:48.6]} 33. Kg2 {[%clk 0:01:06]} 33...
Rxh4 {[%clk 0:00:48.5]} 34. Rf2+ {[%clk 0:01:02.9]} 34... Kxg5 {[%clk
0:00:48.3]} 35. Rxf7 {[%clk 0:01:02.8]} 35... Rxc4 {[%clk 0:00:42.6]} 36. Rxe7
{[%clk 0:01:02.1]} 36... Rc5 {[%clk 0:00:40.4]} 37. Rb7 {[%clk 0:01:00.1]} 37...
b5 {[%clk 0:00:39.3]} 38. Kf3 {[%clk 0:00:59.5]} 38... Rxd5 {[%clk 0:00:38.1]}
39. Rb6 {[%clk 0:00:58.5]} 39... Kf5 {[%clk 0:00:36.3]} 40. Kg3 {[%clk
0:00:58.4]} 40... g5 {[%clk 0:00:34.9]} 41. Kf3 {[%clk 0:00:58.6]} 41... g4+
{[%clk 0:00:31.6]} 42. Kg3 {[%clk 0:00:58.2]} 42... Kg5 {[%clk 0:00:30.7]} 43.
Kf2 {[%clk 0:00:56.3]} 43... Kf4 {[%clk 0:00:30.3]} 44. Rb8 {[%clk 0:00:53.9]}
44... g3+ {[%clk 0:00:29.8]} 45. Kg2 {[%clk 0:00:53.9]} 45... Rd2+ {[%clk
0:00:27.9]} 46. Kf1 {[%clk 0:00:54.1]} 46... Rb2 {[%clk 0:00:24.1]} 47. Rf8+
{[%clk 0:00:53.1]} 47... Ke4 {[%clk 0:00:18.3]} 48. Re8+ {[%clk 0:00:53]} 48...
Kd4 {[%clk 0:00:16.6]} 49. Rg8 {[%clk 0:00:51.7]} 49... g2+ {[%clk 0:00:16.7]}
50. Kg1 {[%clk 0:00:50.6]} 50... d5 {[%clk 0:00:16.5]} 51. Rg4+ {[%clk
0:00:48.7]} 51... Kd3 {[%clk 0:00:14.7]} 52. Rg5 {[%clk 0:00:47.6]} 52... Kc4
{[%clk 0:00:14.6]} 53. Rg8 {[%clk 0:00:45.7]} 53... b4 {[%clk 0:00:13.8]} 54.
Rc8+ {[%clk 0:00:46.6]} 54... Kd3 {[%clk 0:00:13.3]} 55. Rd8 {[%clk 0:00:46.7]}
55... d4 {[%clk 0:00:13.6]} 56. Rg8 {[%clk 0:00:45.7]} 56... b3 {[%clk
0:00:13.1]} 57. Rg3+ {[%clk 0:00:46.2]} 57... Kc4 {[%clk 0:00:13.1]} 58. Rg4
{[%clk 0:00:45.9]} 58... Rc2 {[%clk 0:00:12.7]} 59. Rg8 {[%clk 0:00:44.8]} 59...
b2 {[%clk 0:00:12.8]} 60. Rc8+ {[%clk 0:00:45.7]} 60... Kd3 {[%clk 0:00:12.8]}
61. Rb8 {[%clk 0:00:46.3]} 61... Rc1+ {[%clk 0:00:12.2]} 62. Kxg2 {[%clk
0:00:46.8]} 62... b1=Q {[%clk 0:00:12.9]} 63. Rxb1 {[%clk 0:00:46.6]} 63... Rxb1
{[%clk 0:00:13.8]} 64. Kf3 {[%clk 0:00:47]} 64... Re1 {[%clk 0:00:14.1]} 65. Kf4
{[%clk 0:00:47.9]} 65... Kc2 {[%clk 0:00:13.1]} 66. Kf5 {[%clk 0:00:47.4]} 66...
d3 {[%clk 0:00:13.4]} 67. Kf6 {[%clk 0:00:48.3]} 67... d2 {[%clk 0:00:13.7]} 68.
Kg5 {[%clk 0:00:49.2]} 68... d1=Q {[%clk 0:00:13.7]} 69. Kg6 {[%clk 0:00:50.1]}
69... Re2 {[%clk 0:00:12.8]} 70. Kh7 {[%clk 0:00:51]} 70... Qf1 {[%clk
0:00:12.9]} 71. Kg7 {[%clk 0:00:51.9]} 0-1

[Event "Early-Titled-Tuesday-Blitz-April-02-2024"]
[Site "Chess.com"]
[Date "2024.04.02"]
[Round "3"]
[White "AlexeiShirov"]
[Black "Quattroporte300"]
[Result "1-0"]
[WhiteElo "2813"]
[BlackElo "2511"]
[TimeControl "180+1"]
[EndTime "8:28:23 PDT"]
[Termination "AlexeiShirov won on time"]

1. e4 {[%clk 0:02:52.7]} 1... c5 {[%clk 0:02:59.9]} 2. Nf3 {[%clk 0:02:51.2]}
2... e6 {[%clk 0:03:00.3]} 3. d4 {[%clk 0:02:50.2]} 3... cxd4 {[%clk 0:03:00.8]}
4. Nxd4 {[%clk 0:02:49.8]} 4... Nc6 {[%clk 0:03:01.7]} 5. Nc3 {[%clk 0:02:49]}
5... Qc7 {[%clk 0:03:01.7]} 6. Be3 {[%clk 0:02:48.7]} 6... a6 {[%clk 0:03:02.2]}
7. Qf3 {[%clk 0:02:47.2]} 7... Nf6 {[%clk 0:03:02.3]} 8. O-O-O {[%clk
0:02:46.6]} 8... Ne5 {[%clk 0:03:01.6]} 9. Qg3 {[%clk 0:02:46]} 9... b5 {[%clk
0:03:01.5]} 10. f4 {[%clk 0:02:38.3]} 10... Neg4 {[%clk 0:03:01.1]} 11. Bg1
{[%clk 0:02:37.7]} 11... b4 {[%clk 0:03:01.7]} 12. Nd5 {[%clk 0:02:18.2]} 12...
exd5 {[%clk 0:02:49.3]} 13. e5 {[%clk 0:02:17.8]} 13... Ne4 {[%clk 0:02:04.2]}
14. Qxg4 {[%clk 0:02:17]} 14... d6 {[%clk 0:02:04.1]} 15. e6 {[%clk 0:02:13.1]}
15... Nf6 {[%clk 0:01:47.5]} 16. Qe2 {[%clk 0:02:05.5]} 16... Be7 {[%clk
0:01:25]} 17. g4 {[%clk 0:01:56.2]} 17... O-O {[%clk 0:01:14.4]} 18. Bg2 {[%clk
0:01:55.9]} 18... Ne4 {[%clk 0:00:56.8]} 19. Bxe4 {[%clk 0:01:36.8]} 19... dxe4
{[%clk 0:00:56.6]} 20. exf7+ {[%clk 0:01:33.8]} 20... Rxf7 {[%clk 0:00:56.3]}
21. Be3 {[%clk 0:01:33.1]} 21... d5 {[%clk 0:00:52.1]} 22. f5 {[%clk 0:01:32.7]}
22... Bd7 {[%clk 0:00:50.7]} 23. Kb1 {[%clk 0:01:27.3]} 23... a5 {[%clk
0:00:41.5]} 24. Rhf1 {[%clk 0:01:24.6]} 24... Raf8 {[%clk 0:00:29.8]} 25. Bf4
{[%clk 0:01:16.3]} 25... Qb6 {[%clk 0:00:21.9]} 26. Be3 {[%clk 0:01:08.2]} 26...
Bc5 {[%clk 0:00:20.7]} 27. Rfe1 {[%clk 0:01:04.4]} 27... a4 {[%clk 0:00:20.5]}
28. Ne6 {[%clk 0:01:02.2]} 28... Bxe6 {[%clk 0:00:16.8]} 29. fxe6 {[%clk
0:01:01.7]} 29... Rf3 {[%clk 0:00:10]} 30. e7 {[%clk 0:00:55.8]} 30... Re8
{[%clk 0:00:08.4]} 31. Bxc5 {[%clk 0:00:44.1]} 31... Qxc5 {[%clk 0:00:09.3]} 32.
Qd2 {[%clk 0:00:44.1]} 32... Rxe7 {[%clk 0:00:06.4]} 33. Qxd5+ {[%clk
0:00:44.5]} 33... Qxd5 {[%clk 0:00:06.8]} 34. Rxd5 {[%clk 0:00:44.5]} 34... Rf2
{[%clk 0:00:06.4]} 35. Rd4 {[%clk 0:00:31.9]} 35... e3 {[%clk 0:00:06.4]} 36.
Rxb4 {[%clk 0:00:30.1]} 36... e2 {[%clk 0:00:06.1]} 37. Kc1 {[%clk 0:00:29.4]}
37... Rxh2 {[%clk 0:00:03.3]} 38. Rd4 {[%clk 0:00:26.8]} 38... Rg2 {[%clk
0:00:03]} 39. Kd2 {[%clk 0:00:25.4]} 39... g6 {[%clk 0:00:02.6]} 40. Rxa4 {[%clk
0:00:23.4]} 40... h5 {[%clk 0:00:03.1]} 41. gxh5 {[%clk 0:00:22.3]} 41... gxh5
{[%clk 0:00:04]} 42. Rd4 {[%clk 0:00:21.9]} 42... Kg7 {[%clk 0:00:02.9]} 43. c4
{[%clk 0:00:21.6]} 43... Kg6 {[%clk 0:00:03.4]} 44. c5 {[%clk 0:00:21.3]} 44...
Kg5 {[%clk 0:00:04.1]} 45. b4 {[%clk 0:00:19.9]} 45... h4 {[%clk 0:00:04.4]} 46.
c6 {[%clk 0:00:19.5]} 46... h3 {[%clk 0:00:04.7]} 47. Rd8 {[%clk 0:00:17.2]}
47... Kf4 {[%clk 0:00:03.5]} 48. b5 {[%clk 0:00:15.2]} 48... h2 {[%clk
0:00:03.4]} 49. Rh8 {[%clk 0:00:14.9]} 1-0